bitfinex/quotes_ETHUSD_20220201
["timestamp","ask_amount","ask_price","bid_price","bid_amount"]
[1643683913170,2.07684384,2715.2,2714.9,1.50105136]
[1643683913394,0.36113584,2715.3,2714.6,0.07209997]
[1643683913822,0.36113584,2715.3,2714.2,0.66706518]
[1643683913991,0.31113584,2715.3,2714.1,0.85116518]
[1643683914200,0.43221369,2714.7,2714.1,0.66706518]
[1643683914397,0.442,2715.3,2714.1,0.66706518]
[1643683915400,0.32633623,2714.9,2714.1,0.66706518]
[1643683915605,0.32633623,2714.9,2713.9,0.85116518]
[1643683915941,0.81467133,2714.5,2713.9,0.85116518]
[1643683916300,0.32633623,2714.9,2713.9,0.1841]
[1643683917102,0.0383593,2715.2,2713.9,0.1841]
[1643683917302,0.72746407,2714.9,2713.9,0.1841]
[1643683917757,0.47897261,2715.2,2714.0,0.66706518]
[1643683918045,0.47897261,2715.2,2713.9,0.85116518]
[1643683918246,0.47897261,2715.2,2713.8,0.01227396]
[1643683918247,0.35461745,2714.9,2713.8,0.01227396]
[1643683918450,0.30461745,2714.9,2713.8,0.01227396]
[1643683918647,0.82679784,2714.5,2713.6,1.99249998]
[1643683918850,0.82679784,2714.5,2713.6,1.0754348]
[1643683919256,0.43729983,2714.4,2713.6,1.0754348]
[1643683919454,0.03586779,2714.6,2713.6,1.0754348]
[1643683919651,0.01233238,2715.5,2713.6,1.0754348]
[1643683919854,0.45433238,2715.5,2713.6,1.0754348]
[1643683920050,0.45433238,2715.5,2713.7,1.95054095]
[1643683920248,0.45433238,2715.5,2713.6,1.6754348]
[1643683920449,1.22349496,2714.9,2713.7,0.1841]
[1643683920652,1.66549496,2714.9,2713.7,0.1841]
[1643683921350,0.20429997,2715.6,2713.9,0.01240017]
[1643683921351,0.64629997,2715.6,2713.9,0.01240017]
[1643683921595,0.442,2715.9,2714.0,6.87229997]
[1643683921800,0.442,2715.9,2714.0,0.92229997]
[1643683922198,0.35619959,2715.7,2714.3,0.33557205]
[1643683922405,0.35619959,2715.7,2714.4,0.1841]
[1643683922596,0.37225737,2715.9,2714.3,6.45]
[1643683922797,0.68966633,2715.8,2714.4,2.31168329]
[1643683922999,0.37225737,2715.9,2714.4,2.31168329]
[1643683923299,5.50739775,2716.4,2714.5,6.86212159]
[1643683923300,0.442,2716.3,2714.5,6.86212159]
[1643683923497,0.4354797,2715.9,2714.6,2.16140829]
[1643683923898,0.4354797,2715.9,2714.6,0.1841]
[1643683924097,0.8774797,2715.9,2714.6,0.1841]
[1643683924540,0.55398827,2715.9,2714.6,0.1841]
[1643683924697,1.35577842,2715.9,2714.6,0.1841]
[1643683925737,0.25092813,2715.9,2714.6,0.1841]
[1643683925944,5.91217798,2716.4,2714.6,0.1841]
[1643683926143,5.91217798,2716.4,2714.6,2.84049327]
[1643683926343,5.91217798,2716.4,2714.6,3.44049327]
[1643683926946,5.91217798,2716.4,2714.6,3.62430327]
[1643683926947,0.35001407,2715.9,2714.6,3.62430327]
[1643683927141,0.35001407,2715.9,2714.6,3.44049327]
[1643683927344,0.35001407,2715.9,2714.6,0.7841]
[1643683927745,0.35001407,2715.9,2714.7,1.95757335]
[1643683927941,0.35001407,2715.9,2714.8,0.1841]
[1643683928142,0.35964669,2715.4,2714.8,0.4841]
[1643683928344,0.86453984,2716.1,2714.8,0.7841]
[1643683928744,0.86453984,2716.1,2714.8,0.1841]
[1643683929000,0.8388162,2715.6,2714.8,0.1841]
[1643683929191,0.68499081,2715.4,2714.6,0.1841]
[1643683929602,0.36476851,2714.7,2714.6,0.1841]
[1643683930799,0.36476851,2714.7,2714.2,0.1841]
[1643683931802,0.72670342,2714.4,2714.2,0.1841]
[1643683932001,0.36476851,2714.7,2714.2,0.1841]
[1643683932207,1.0,2715.9,2714.2,0.1841]
[1643683932208,0.37374531,2715.0,2714.2,0.1841]
[1643683933244,0.442,2715.1,2713.6,1.2595348]
[1643683933245,0.42154402,2714.4,2713.6,1.2595348]
[1643683933447,0.68475696,2714.6,2713.7,1.55153066]
[1643683933646,0.442,2715.1,2713.8,0.4842]
[1643683933848,0.442,2715.1,2713.8,0.1842]
[1643683934054,0.442,2715.1,2713.7,0.1841]
[1643683934451,0.442,2715.1,2713.6,1.0754348]
[1643683934452,0.442,2715.1,2713.6,1.8596348]
[1643683934658,0.32058349,2714.3,2713.7,1.55149073]
[1643683934856,0.32058349,2714.3,2713.6,1.2596348]
[1643683935114,0.32058349,2714.3,2713.6,1.0754348]
[1643683935251,0.86387099,2714.4,2713.6,1.0754348]
[1643683935252,0.07960419,2714.4,2713.6,1.0754348]
[1643683935651,0.43960388,2714.3,2713.6,1.0754348]
[1643683935852,0.67683001,2713.8,2713.6,1.0754348]
[1643683936896,0.36219535,2713.7,2713.6,1.0754348]
[1643683937299,0.36219535,2713.7,2712.9,0.1842]
[1643683937505,0.36219535,2713.7,2712.8,0.1962831]
[1643683937697,0.36219535,2713.7,2712.8,0.0120831]
[1643683937897,0.36219535,2713.7,2712.9,1.55194544]
[1643683938097,0.442,2714.1,2713.0,6.55]
[1643683938098,0.37617507,2714.1,2713.0,6.55]
[1643683938298,0.36757397,2713.7,2713.1,0.1842]
[1643683938498,0.36757397,2713.7,2712.8,0.0120831]
[1643683938499,0.36757397,2713.7,2712.9,0.1842]
[1643683939102,0.7947603,2713.9,2712.9,0.1842]
[1643683939703,0.40144083,2713.9,2712.9,0.1842]
[1643683940105,0.29567468,2713.9,2712.9,0.1842]
[1643683940362,0.42242411,2713.6,2712.8,0.0120831]
[1643683940953,0.42242411,2713.6,2712.6,0.10028307]
[1643683941154,0.20604955,2713.9,2712.8,4.85]
[1643683941397,0.39438642,2713.2,2712.6,0.10028307]
[1643683941554,0.82655669,2713.5,2712.6,0.10028307]
[1643683942455,1.26855669,2713.5,2712.6,0.10028307]
[1643683942658,0.44162037,2713.2,2712.6,0.10028307]
[1643683943558,0.78703768,2713.0,2712.6,0.10028307]
[1643683943761,0.78703768,2713.0,2712.1,0.1842]
[1643683944003,0.78703768,2713.0,2712.0,0.0122485]
[1643683944204,0.442,2713.1,2712.2,0.04263176]
[1643683944205,0.12418739,2713.1,2712.2,0.04263176]
[1643683944407,1.03791688,2713.0,2712.2,0.04263176]
[1643683944608,0.442,2712.9,2712.2,0.04263176]
[1643683944806,1.23520222,2712.9,2711.7,0.04547388]
[1643683945109,1.23520222,2712.9,2711.6,0.0460423]
[1643683945507,0.99999999,2712.5,2711.6,0.0460423]
[1643683945707,0.99999999,2712.5,2711.0,3.15145142]
[1643683945708,1.0123993,2712.3,2710.8,2.66875966]
[1643683945907,0.99999999,2712.1,2710.8,2.48455966]
[1643683946105,0.92074769,2711.3,2710.4,0.1842]
[1643683946312,2.0,2711.2,2710.4,0.1842]
[1643683946512,0.92074769,2711.3,2710.4,0.1842]
[1643683946513,0.442,2711.1,2710.4,0.1842]
[1643683946713,0.01246177,2711.7,2710.4,0.1842]
[1643683946714,0.442,2711.0,2710.4,0.1842]
[1643683946913,0.20516,2712.4,2710.4,0.1842]
[1643683946914,2.0,2712.2,2710.8,0.01292899]
[1643683947113,0.03791689,2713.0,2710.9,6.55]
[1643683947314,0.03791689,2713.0,2711.5,0.01202109]
[1643683947315,0.40618441,2712.6,2711.5,0.01202109]
[1643683947513,0.442,2712.5,2711.5,0.01202109]
[1643683947953,0.91281404,2712.3,2711.5,0.01202109]
[1643683948145,0.442,2712.5,2711.5,0.01202109]
[1643683948549,0.442,2712.5,2711.6,0.1842]
[1643683948788,0.442,2712.5,2711.5,0.01202109]
[1643683949057,0.442,2712.5,2711.3,0.1842]
[1643683949260,0.442,2712.5,2711.0,0.1842]
[1643683949457,0.442,2712.5,2710.9,0.1842]
[1643683949855,1.23663631,2711.8,2710.9,0.1842]
[1643683950256,0.13178602,2711.8,2710.9,0.1842]
[1643683950457,0.13178602,2711.8,2710.9,0.0842]
[1643683950654,0.442,2712.2,2710.9,0.1844]
[1643683950854,0.09998,2712.1,2710.9,0.1844]
[1643683951056,0.442,2712.2,2710.9,0.1844]
[1643683951254,0.1,2712.1,2710.9,0.1844]
[1643683951699,0.84658502,2711.9,2710.9,0.1844]
[1643683952498,0.36609209,2711.6,2710.9,0.1844]
[1643683952699,0.36609209,2711.6,2710.8,0.1844]
[1643683952900,0.442,2711.5,2710.8,0.1844]
[1643683953103,0.20215506,2711.5,2710.9,5.15]
[1643683953301,0.76437737,2711.3,2710.8,0.1844]
[1643683953901,0.20215506,2711.5,2710.8,0.1844]
[1643683954118,0.1,2711.4,2710.3,0.61958665]
[1643683954503,0.1,2711.4,2710.2,0.1844]
[1643683954702,0.30215506,2711.5,2710.2,0.1844]
[1643683955348,0.20215506,2711.5,2710.2,0.1844]
[1643683955548,1.06602829,2711.5,2710.2,2.39424455]
[1643683955754,1.06602829,2711.5,2710.2,0.7844]
[1643683956206,0.87049239,2711.5,2710.2,0.4844]
[1643683956350,0.87049239,2711.5,2710.2,0.7844]
[1643683956756,0.34029286,2711.2,2710.2,0.7844]
[1643683957153,0.8886348,2711.0,2710.2,0.7844]
[1643683957453,0.8886348,2711.0,2710.2,0.4844]
[1643683957651,0.8886348,2711.0,2710.2,0.7844]
[1643683957851,0.8886348,2711.0,2710.2,0.4844]
[1643683958054,0.8886348,2711.0,2710.2,0.1844]
[1643683958264,0.69670867,2710.5,2710.2,0.1844]
[1643683958458,2.69670867,2710.5,2709.5,2.48518567]
[1643683958659,0.6264,2710.4,2709.5,2.48518567]
[1643683958855,0.6264,2710.4,2709.0,1.1518]
[1643683959103,0.6264,2710.4,2709.1,1.55381798]
[1643683959305,3.41900867,2710.5,2709.2,1.7504939]
[1643683959306,0.7223,2710.5,2709.2,1.7504939]
[1643683959502,0.7223,2710.5,2709.3,1.73762798]
[1643683959706,0.7223,2710.5,2709.4,1.73821798]
[1643683959902,0.7223,2710.5,2709.4,0.1844]
[1643683960303,0.81990459,2710.3,2709.5,0.40226495]
[1643683960502,0.7223,2710.5,2709.6,0.1844]
[1643683961706,2.1844,2711.2,2710.0,0.41484073]
[1643683962528,2.2075273,2711.2,2710.0,0.41484073]
[1643683962752,1.27135361,2711.2,2710.0,0.71484073]
[1643683963144,1.27135361,2711.2,2710.0,0.6]
[1643683963345,1.27135361,2711.2,2709.8,2.23885643]
[1643683963577,1.27135361,2711.2,2709.8,0.31222074]
[1643683964349,0.39926324,2710.7,2709.8,0.31222074]
[1643683964553,2.01101321,2710.6,2709.8,0.31222074]
[1643683964755,2.05289256,2710.5,2709.7,0.3]
[1643683964951,0.83255215,2710.3,2709.6,0.4844]
[1643683965162,2.03980099,2710.6,2709.6,0.1844]
[1643683965352,2.27792669,2710.9,2709.6,0.3]
[1643683965554,2.12441514,2710.8,2709.7,0.1844]
[1643683965951,0.1844,2710.7,2709.5,0.1844]
[1643683966161,0.1844,2710.7,2709.3,0.01236325]
[1643683966354,0.42555427,2710.4,2709.3,0.44855153]
[1643683966597,0.42555427,2710.4,2709.3,0.01236325]
[1643683967697,0.42555427,2710.4,2709.4,0.1844]
[1643683967898,0.1844,2710.7,2709.4,0.1844]
[1643683968102,2.50047505,2711.3,2709.9,0.01268701]
[1643683968103,0.1844,2711.2,2709.9,0.01268701]
[1643683968299,0.1844,2711.2,2710.0,0.1844]
[1643683968500,0.1844,2711.4,2710.0,0.1844]
[1643683968702,0.1844,2711.4,2709.9,0.01268701]
[1643683968901,0.1844,2711.4,2710.0,0.1844]
[1643683969100,0.38136559,2710.8,2710.0,0.1844]
[1643683970340,0.91887468,2710.4,2710.0,0.1344]
[1643683970540,0.91887468,2710.4,2709.4,0.1844]
[1643683970747,0.91887468,2710.4,2709.2,0.01207159]
[1643683970748,0.91887468,2710.4,2709.3,0.1844]
[1643683971850,0.35167786,2710.1,2709.3,0.1844]
[1643683974100,0.35167786,2710.1,2709.2,0.01207159]
[1643683974509,0.35167786,2710.1,2709.3,1.55366274]
[1643683974707,0.1844,2710.9,2709.4,1.73801401]
[1643683974908,0.1844,2710.9,2709.8,0.01686142]
[1643683975113,0.1844,2711.4,2709.9,0.1844]
[1643683975609,0.32353483,2710.8,2709.9,0.1844]
[1643683975910,0.32353483,2710.8,2709.8,2.66542043]
[1643683975911,0.1844,2710.7,2709.8,2.56204581]
[1643683976208,0.50793483,2710.8,2709.5,0.1844]
[1643683976413,0.01224362,2710.7,2709.6,1.55358324]
[1643683976708,0.50793483,2710.8,2709.7,2.0]
[1643683976709,0.1844,2710.6,2709.7,2.0]
[1643683977007,0.1844,2710.7,2709.5,2.01297505]
[1643683977209,0.1844,2711.3,2709.6,1.73732694]
[1643683977407,0.1844,2711.3,2709.7,3.55851767]
[1643683977609,0.1844,2711.4,2709.8,1.55351694]
[1643683977843,0.1844,2711.4,2709.9,2.0]
[1643683978045,0.01243938,2711.9,2709.9,2.0]
[1643683978046,0.1844,2711.6,2710.1,0.01225671]
[1643683978252,0.442,2712.1,2710.2,23.82932694]
[1643683978253,0.1844,2711.8,2710.2,23.82932694]
[1643683978443,1.11820837,2712.1,2710.3,3.55756294]
[1643683978644,0.1844,2712.0,2710.4,1.73732694]
[1643683978845,0.1844,2712.0,2710.5,3.80729471]
[1643683979152,0.87628607,2711.5,2710.5,2.25377777]
[1643683979348,0.1844,2712.0,2710.6,1.73695619]
[1643683979560,5.72122934,2712.6,2710.7,4.01742534]
[1643683979752,5.5243,2712.6,2710.8,2.22115619]
[1643683979949,5.5243,2712.6,2710.9,3.66310121]
[1643683980147,5.5243,2712.6,2711.0,3.73734619]
[1643683980148,0.1842,2712.5,2711.0,3.73734619]
[1643683980390,0.1842,2712.5,2711.1,2.03695619]
[1643683980550,5.5243,2712.6,2711.2,3.74115877]
[1643683980747,0.1842,2713.1,2711.3,2.55314619]
[1643683980948,0.1842,2713.1,2711.4,3.74365786]
[1643683981148,0.1842,2713.1,2711.4,2.49051167]
[1643683981349,0.38806833,2712.5,2711.4,2.93806483]
[1643683981607,0.38806833,2712.5,2711.4,2.49051167]
[1643683981608,1.00685523,2712.5,2711.4,2.49051167]
[1643683981805,1.00685523,2712.5,2711.4,2.4842]
[1643683982003,0.33806833,2712.5,2711.5,0.18381]
[1643683982202,0.33806833,2712.5,2711.5,1.0]
[1643683982403,0.33806833,2712.5,2711.6,1.97901821]
[1643683982603,0.33806833,2712.5,2711.6,2.27901821]
[1643683982801,0.33806833,2712.5,2711.6,2.54181821]
[1643683983004,0.33806833,2712.5,2711.6,0.5628]
[1643683983202,0.33806833,2712.5,2711.6,0.3]
[1643683983402,0.33806833,2712.5,2711.6,1.97221127]
[1643683983602,0.33806833,2712.5,2711.5,3.00861033]
[1643683983805,0.33806833,2712.5,2711.5,2.00861033]
[1643683984209,0.1842,2712.4,2710.8,1.63871]
[1643683984414,0.1842,2712.4,2711.1,3.5529346]
[1643683984606,0.1842,2712.4,2711.2,3.5529346]
[1643683984807,0.1842,2712.4,2711.3,1.5529346]
[1643683985448,0.40574965,2712.0,2711.3,1.8529346]
[1643683985651,0.1842,2712.4,2711.4,1.5529346]
[1643683985848,0.86050038,2712.2,2711.4,1.5529346]
[1643683986048,0.86050038,2712.2,2711.3,0.6]
[1643683986348,0.1842,2712.1,2711.4,1.55287133]
[1643683986547,0.86050038,2712.2,2711.4,1.55287133]
[1643683986548,0.36972672,2711.8,2711.4,1.85287133]
[1643683986748,0.36972672,2711.8,2711.4,0.3]
[1643683986952,0.36972672,2711.8,2711.5,1.55286783]
[1643683987148,0.36972672,2711.8,2711.2,2.6]
[1643683987351,0.1842,2712.1,2711.5,0.3]
[1643683987552,0.86050038,2712.2,2711.4,0.3]
[1643683987755,0.86050038,2712.2,2711.5,1.85287745]
[1643683987949,0.86050038,2712.2,2711.1,2.2692429]
[1643683988150,0.86050038,2712.2,2711.5,0.3]
[1643683988350,0.86050038,2712.2,2711.6,1.55290221]
[1643683988551,0.39316794,2711.9,2711.3,0.3]
[1643683988789,0.39316794,2711.9,2711.4,1.55287486]
[1643683988995,0.39316794,2711.9,2711.4,1.85287486]
[1643683989199,0.39316794,2711.9,2711.5,1.55287486]
[1643683989401,0.39316794,2711.9,2711.5,1.85287486]
[1643683989606,0.1842,2712.1,2711.6,1.55287486]
[1643683990210,0.03791689,2713.0,2711.7,2.11028192]
[1643683990211,0.1842,2712.8,2711.7,2.11028192]
[1643683990407,0.1842,2712.8,2711.8,1.55287486]
[1643683990611,0.36528064,2712.5,2711.9,2.08475635]
[1643683990805,0.36528064,2712.5,2712.0,1.55287486]
[1643683991005,0.36528064,2712.5,2711.9,2.27142857]
[1643683991205,0.36528064,2712.5,2712.0,1.55267128]
[1643683991407,0.36528064,2712.5,2712.0,1.85267128]
[1643683991606,0.1842,2712.9,2712.1,1.55261802]
[1643683991940,0.1842,2712.9,2712.1,1.85261802]
[1643683992109,0.1842,2712.9,2712.1,0.3]
[1643683992405,0.1842,2712.9,2711.7,3.07421337]
[1643683992605,0.03791689,2713.0,2711.8,1.55261296]
[1643683992606,0.40489022,2712.8,2711.8,1.55261296]
[1643683992859,0.40489022,2712.8,2711.9,2.23789538]
[1643683993054,0.40489022,2712.8,2712.0,1.85261296]
[1643683993254,0.40489022,2712.8,2712.1,1.55256083]
[1643683993453,0.40489022,2712.8,2712.0,0.3]
[1643683993651,0.40489022,2712.8,2712.1,0.4842]
[1643683993852,0.40489022,2712.8,2712.1,0.1842]
[1643683994855,0.40489022,2712.8,2711.9,0.2]
[1643683995084,0.40489022,2712.8,2711.7,4.33636724]
[1643683995257,0.40489022,2712.8,2711.8,1.55265952]
[1643683995457,0.1842,2713.0,2712.0,0.9216528]
[1643683995658,1.01265583,2713.5,2712.1,4.05157367]
[1643683995659,0.1842,2713.4,2712.1,4.05157367]
[1643683995862,0.1842,2713.9,2712.2,2.73668583]
[1643683996059,0.1842,2714.0,2712.3,2.10967472]
[1643683996260,0.1842,2714.0,2712.4,0.1842]
[1643683996486,0.36010821,2713.0,2712.4,0.1842]
[1643683996692,0.80818716,2712.9,2712.4,0.3]
[1643683996891,0.80818716,2712.9,2712.2,0.3]
[1643683997093,0.80818716,2712.9,2712.1,0.4842]
[1643683997297,0.80818716,2712.9,2712.1,0.1842]
[1643683997494,0.1842,2712.8,2712.1,0.1842]
[1643683997695,0.99238716,2712.9,2712.1,0.1842]
[1643683997894,0.99238716,2712.9,2711.5,2.02755]
[1643683997895,0.71094207,2712.4,2711.5,2.02755]
[1643683998097,0.71094207,2712.4,2711.5,0.1842]
[1643683998297,0.71094207,2712.4,2711.3,0.1842]
[1643683998496,0.1842,2712.3,2711.1,2.0279669]
[1643683998697,0.1842,2712.3,2711.2,1.55289857]
[1643684000097,0.31678527,2711.9,2711.2,1.55289857]
[1643684000360,0.31678527,2711.9,2711.1,1.8437669]
[1643684000947,0.31678527,2711.9,2711.2,1.55292702]
[1643684001147,0.31678527,2711.9,2711.2,1.85292702]
[1643684001347,0.31678527,2711.9,2711.2,0.6]
[1643684001748,0.31678527,2711.9,2711.2,0.3]
[1643684002552,0.31678527,2711.9,2711.1,1.8437669]
[1643684003051,0.7152,2712.3,2711.0,2.1842]
[1643684003255,0.1842,2712.6,2711.1,2.09640563]
[1643684003451,0.32239997,2712.7,2711.2,3.55286132]
[1643684003651,0.32239997,2712.7,2711.3,1.55286132]
[1643684004116,0.43130144,2712.3,2711.3,1.87447305]
[1643684004320,1.23558706,2712.7,2711.4,1.73706132]
[1643684004548,1.23558706,2712.7,2711.5,1.55286132]
[1643684004717,1.05138706,2712.7,2711.5,2.15286132]
[1643684005017,1.05138706,2712.7,2711.6,2.47472232]
[1643684005220,1.05138706,2712.7,2711.6,2.98816046]
[1643684005418,0.3966962,2712.5,2711.7,0.3]
[1643684007426,0.3966962,2712.5,2711.8,1.91715399]
[1643684007757,0.3966962,2712.5,2711.8,2.21715399]
[1643684007950,0.3966962,2712.5,2711.8,0.3]
[1643684008149,0.3966962,2712.5,2711.7,2.20659762]
[1643684008961,0.3966962,2712.5,2711.7,0.3]
[1643684009253,0.36280075,2712.5,2711.7,0.3]
[1643684009456,0.32426829,2712.4,2711.7,0.3]
[1643684009658,0.33506728,2712.3,2711.7,0.3]
[1643684010055,0.36023639,2712.2,2711.7,0.3]
[1643684010257,0.05435483,2712.7,2711.7,0.3]
[1643684010656,0.89318261,2712.7,2711.7,0.3]
[1643684011057,0.89318261,2712.7,2711.6,0.3]
[1643684011260,0.8088327,2712.7,2711.4,7.9936888]
[1643684011910,0.8088327,2712.7,2711.5,1.94013948]
[1643684012109,0.8088327,2712.7,2711.4,1.8436888]
[1643684012310,0.8088327,2712.7,2711.6,0.29760677]
[1643684012311,0.531,2712.7,2711.6,0.29760677]
[1643684012710,0.43503072,2711.7,2711.6,0.29760677]
[1643684012914,0.44530017,2712.6,2711.6,0.29760677]
[1643684013110,1.92208,2713.1,2711.8,3.25]
[1643684013111,0.9143661,2712.5,2711.8,3.25]
[1643684013311,0.9143661,2712.5,2711.7,0.3]
[1643684013709,0.9143661,2712.5,2711.6,0.29760677]
[1643684014311,0.35542495,2711.9,2711.6,0.29760677]
[1643684014612,0.35542495,2711.9,2711.5,1.2219501]
[1643684014812,0.35542495,2711.9,2711.5,0.3]
[1643684015249,0.39680153,2711.7,2711.2,2.99741067]
[1643684015458,0.39680153,2711.7,2711.3,1.5528742]
[1643684016053,0.34769023,2713.1,2711.7,5.9]
[1643684016252,0.443,2713.0,2711.7,0.3]
[1643684016455,1.22198,2713.4,2711.7,5.5]
[1643684016655,1.22198,2713.4,2711.7,1.9048799]
[1643684016656,0.78342704,2712.5,2711.7,1.9048799]
[1643684016855,0.78342704,2712.5,2711.6,0.29760677]
[1643684017054,0.40988086,2711.5,2711.4,1.9687868]
[1643684017296,0.78342704,2712.5,2711.4,5.30283854]
[1643684017455,0.78342704,2712.5,2711.6,0.29760677]
[1643684017653,0.78342704,2712.5,2711.5,1.86115326]
[1643684017855,0.78342704,2712.5,2711.6,1.8504402]
[1643684018057,0.78342704,2712.5,2711.6,0.29760677]
[1643684018254,0.36585052,2711.9,2711.7,1.55282803]
[1643684018753,0.36585052,2711.9,2711.7,1.85282803]
[1643684019006,0.36585052,2711.9,2711.7,0.59760677]
[1643684019407,0.41392267,2712.0,2711.8,1.55281973]
[1643684019604,0.443,2713.0,2711.9,1.90558912]
[1643684019807,0.443,2713.0,2712.0,1.55271503]
[1643684020004,0.443,2713.0,2712.1,1.95803921]
[1643684020404,0.443,2713.0,2712.0,2.15285396]
[1643684020609,0.443,2713.0,2712.1,1.55264801]
[1643684021007,0.41666229,2712.2,2712.1,1.55264801]
[1643684021608,0.41666229,2712.2,2712.0,1.55264801]
[1643684022208,0.78352988,2712.8,2712.0,1.55264801]
[1643684022408,0.443,2713.0,2712.0,1.55264801]
[1643684023455,0.32359058,2712.4,2712.0,1.55264801]
[1643684025368,0.32359058,2712.4,2712.1,1.55264801]
[1643684025565,0.32359058,2712.4,2711.8,0.01227137]
[1643684025769,0.32359058,2712.4,2711.9,1.55273545]
[1643684026510,0.32359058,2712.4,2711.9,2.47457945]
[1643684026711,0.32359058,2712.4,2712.0,1.55273545]
[1643684026913,0.443,2713.2,2712.0,1.55273545]
[1643684027115,7.69588279,2713.6,2712.1,1.86858006]
[1643684027318,7.69588279,2713.6,2712.5,0.29760677]
[1643684027319,7.0604,2713.6,2712.5,0.29760677]
[1643684027515,7.0604,2713.6,2712.6,1.55273545]
[1643684027714,1.0775,2713.6,2712.6,2.15273545]
[1643684027915,0.75276089,2713.1,2712.7,1.55273545]
[1643684028115,0.41925341,2712.7,2712.2,0.29760677]
[1643684028320,0.41925341,2712.7,2712.3,3.66757503]
[1643684028514,1.0775,2713.6,2712.4,2.47405732]
[1643684028715,1.0775,2713.6,2712.5,2.15244882]
[1643684028957,1.0775,2713.6,2712.6,1.85005559]
[1643684029115,0.67261588,2713.4,2712.6,0.29760677]
[1643684029314,1.0775,2713.6,2712.6,0.29760677]
[1643684029514,1.0775,2713.6,2712.7,0.29760677]
[1643684029716,1.0775,2713.6,2712.5,2.4406015]
[1643684029917,0.39645388,2712.9,2712.6,1.55240146]
[1643684030758,0.83288565,2713.4,2712.6,1.55240146]
[1643684031758,0.32042429,2712.7,2712.6,1.55240146]
[1643684032100,0.83288565,2713.4,2712.3,0.1842]
[1643684032461,0.01229703,2713.0,2712.3,0.1842]
[1643684032658,0.443,2712.9,2712.3,0.1842]
[1643684032859,2.26756756,2712.8,2712.3,0.1842]
[1643684033073,0.78144722,2712.6,2712.3,0.1842]
[1643684033261,1.98467966,2712.5,2712.3,0.1842]
[1643684034107,1.98467966,2712.5,2711.8,0.29760677]
[1643684034308,1.98467966,2712.5,2711.9,1.55282991]
[1643684034510,1.93929712,2712.5,2711.9,1.55282991]
[1643684034813,2.95813586,2712.5,2711.9,1.55282991]
[1643684035009,2.95813586,2712.5,2711.2,0.1842]
[1643684035237,1.95813586,2712.5,2711.3,1.55295174]
[1643684035812,1.95813586,2712.5,2711.4,0.37144591]
[1643684036016,0.443,2712.6,2711.5,1.55295174]
[1643684036216,5.9575,2712.9,2711.5,3.99642658]
[1643684036412,5.9575,2712.9,2711.6,1.73715174]
[1643684036613,5.9575,2712.9,2711.7,1.55295174]
[1643684036813,5.9575,2712.9,2711.9,0.9217895]
[1643684037015,0.42179327,2712.0,2711.8,1.843579]
[1643684037333,2.20057496,2713.0,2711.9,1.55277095]
[1643684037959,0.86830988,2712.4,2711.9,1.55277095]
[1643684038455,0.32823671,2712.2,2711.9,1.55277095]
[1643684038857,2.2200712,2712.8,2711.9,1.85037772]
[1643684039058,0.443,2713.0,2712.0,1.55277095]
[1643684039263,1.443,2713.0,2712.0,1.55277095]
[1643684039489,0.94364818,2712.5,2712.0,1.55277095]
[1643684039959,2.03438276,2712.9,2712.0,1.55277095]
[1643684040359,0.83259134,2712.8,2712.0,1.55277095]
[1643684040562,2.25359712,2712.7,2711.6,1.1061409]
[1643684040760,2.41850776,2712.7,2711.7,1.85281391]
[1643684040959,2.41850776,2712.7,2711.8,1.55281391]
[1643684040960,0.70210727,2712.5,2711.8,1.55281391]
[1643684041261,0.32182131,2712.1,2711.8,1.55281391]
[1643684041528,1.0,2713.1,2711.9,2.27398787]
[1643684041729,0.443,2713.0,2712.1,0.29760677]
[1643684041927,1.0,2713.4,2712.1,0.29760677]
[1643684041928,0.443,2713.3,2712.2,3.63965493]
[1643684042130,0.443,2713.3,2712.3,1.55281391]
[1643684042329,0.443,2713.3,2712.4,1.85320584]
[1643684042531,0.443,2713.3,2712.5,1.85042068]
[1643684042532,0.32483245,2712.9,2712.5,1.85042068]
[1643684042729,0.32483245,2712.9,2712.6,3.66954299]
[1643684042929,0.32483245,2712.9,2712.7,1.55281391]
[1643684043330,0.32483245,2712.9,2712.5,0.29760677]
[1643684043529,0.32483245,2712.9,2712.6,1.55247815]
[1643684044130,0.33725507,2712.9,2712.2,2.56607863]
[1643684044330,0.33725507,2712.9,2712.3,1.55255768]
[1643684045032,0.93591264,2713.0,2712.4,1.55255768]
[1643684045268,0.93591264,2713.0,2712.5,1.55255768]
[1643684045469,0.93591264,2713.0,2712.1,2.5257154]
[1643684045670,0.93591264,2713.0,2712.2,1.73678769]
[1643684045868,0.93591264,2713.0,2712.3,1.55258769]
[1643684046070,0.93591264,2713.0,2712.4,1.55258769]
[1643684046071,0.44589262,2712.9,2712.4,1.55258769]
[1643684046271,0.87576773,2712.5,2712.0,0.29760677]
[1643684046475,0.87576773,2712.5,2712.1,1.55273006]
[1643684046888,0.44589262,2712.9,2712.1,1.55273006]
[1643684047069,0.3312257,2712.3,2712.1,1.55273006]
[1643684048070,0.84606727,2712.6,2712.1,1.55273006]
[1643684048270,0.43944727,2712.5,2712.1,1.55273006]
[1643684049906,0.43944727,2712.5,2712.2,0.29760677]
[1643684050115,0.43944727,2712.5,2712.3,1.55267032]
[1643684050310,0.443,2713.3,2712.3,2.03687032]
[1643684050508,0.443,2713.3,2712.4,1.55267032]
[1643684050909,0.443,2713.3,2712.2,0.29760677]
[1643684051113,0.443,2713.3,2712.3,1.552717]
[1643684051308,0.443,2713.3,2712.1,2.0]
[1643684051513,0.39878008,2712.5,2712.2,1.55271317]
[1643684051909,0.39878008,2712.5,2712.3,1.55271317]
[1643684052109,1.443,2713.3,2712.2,5.05]
[1643684052309,0.443,2713.3,2712.3,1.55269646]
[1643684052511,1.743,2713.3,2712.0,1.8434601]
[1643684052755,1.443,2713.3,2712.1,4.19254422]
[1643684052965,1.443,2713.3,2712.2,1.55270485]
[1643684053164,0.71611134,2713.1,2712.2,1.55270485]
[1643684053569,2.39588153,2713.0,2712.2,1.55270485]
[1643684053760,2.39588153,2713.0,2711.9,0.29760677]
[1643684053761,3.39588153,2713.0,2711.9,0.29760677]
[1643684053963,3.39588153,2713.0,2712.0,1.55279111]
[1643684054165,3.39588153,2713.0,2712.0,1.85279111]
[1643684054367,2.39588153,2713.0,2712.1,1.55279111]
[1643684054862,1.83518145,2713.3,2712.1,1.55279111]
[1643684055064,2.02886438,2713.3,2712.1,1.55279111]
[1643684055263,2.83518145,2713.3,2712.1,1.55279111]